bitfinex/quotes_SOLUSD_20260105
["timestamp","ask_amount","ask_price","bid_price","bid_amount"]
[1767604053248,0.72448722,134.84,134.8,0.6831915]
[1767604053455,0.72448722,134.84,134.8,4.04285813]
[1767604054041,0.72448722,134.84,134.8,3.35966663]
[1767604054658,0.72448722,134.84,134.79,40.83108809]
[1767604054845,0.72448722,134.84,134.8,0.6831915]
[1767604055265,0.72448722,134.84,134.81,7.41784734]
[1767604055741,0.72448722,134.83,134.81,7.41784734]
[1767604056272,0.72448722,134.82,134.78,17.48285813]
[1767604056457,0.72448722,134.82,134.79,7.41841017]
[1767604056645,0.72448722,134.82,134.8,7.41837797]
[1767604057372,0.72448722,134.83,134.79,8.10213949]
[1767604057551,0.72448722,134.83,134.79,11.46180612]
[1767604057868,4.08415385,134.83,134.78,20.85946456]
[1767604058169,0.72448722,134.82,134.78,20.85946456]
[1767604058464,0.72448722,134.82,134.78,21.54265606]
[1767604059355,0.72448722,134.82,134.78,20.85946456]
[1767604059556,0.72448722,134.81,134.77,69.21982068]
[1767604059766,0.72448722,134.81,134.77,69.90301218]
[1767604060964,0.72448722,134.8,134.77,62.4831915]
[1767604061151,0.72448722,134.8,134.77,61.8]
[1767604061152,0.72448722,134.79,134.77,61.8]
[1767604061347,0.72448722,134.82,134.78,0.6831915]
[1767604061552,0.72448722,134.84,134.81,0.6831915]
[1767604064377,0.72448722,134.84,134.81,8.10092564]
[1767604064878,0.72448722,134.84,134.81,7.41773414]
[1767604065286,0.72448722,134.84,134.8,69.90141762]
[1767604065663,0.72448722,134.83,134.8,61.8]
[1767604066066,0.72448722,134.81,134.78,0.6831915]
[1767604066384,0.72448722,134.81,134.77,24.21938067]
[1767604066385,0.72448722,134.81,134.77,86.70257217]
[1767604067387,0.72448722,134.81,134.77,69.90290554]
[1767604067887,0.72448722,134.81,134.77,8.10290554]
[1767604068189,4.08415385,134.81,134.77,8.10290554]
[1767604068370,0.72448722,134.81,134.77,8.10290554]
[1767604069582,45.42224271,134.88,134.78,0.6831915]
[1767604069583,0.72448722,134.85,134.78,0.6831915]
[1767604069762,0.72448722,134.82,134.79,0.6831915]
[1767604069968,5.47590912,134.81,134.79,0.6831915]
[1767604070273,0.72448722,134.82,134.79,0.6831915]
[1767604070489,5.47595064,134.81,134.79,0.6831915]
[1767604070789,0.72448722,134.82,134.79,0.6831915]
[1767604070964,5.47589049,134.81,134.78,65.15966663]
[1767604071170,0.72448722,134.82,134.78,69.90255709]
[1767604071365,5.47594253,134.81,134.78,69.90255709]
[1767604071568,0.72448722,134.82,134.78,69.90255709]
[1767604071888,5.47594253,134.81,134.78,69.90255709]
[1767604072093,0.72448722,134.82,134.78,69.90255709]
[1767604072277,5.47576733,134.81,134.78,69.90255709]
[1767604072592,0.72448722,134.82,134.78,69.90255709]
[1767604072891,5.47577407,134.81,134.78,69.90255709]
[1767604073189,0.72448722,134.82,134.78,69.90255709]
[1767604073388,5.47567057,134.81,134.78,69.90255709]
[1767604073589,0.72448722,134.82,134.78,69.90255709]
[1767604073798,5.47566946,134.81,134.78,69.90255709]
[1767604073976,0.72448722,134.82,134.78,69.90255709]
[1767604074181,5.47567057,134.81,134.78,69.88249645]
[1767604074381,0.72448722,134.82,134.78,69.88249645]
[1767604074582,5.47584511,134.81,134.78,69.88249645]
[1767604074887,0.72448722,134.82,134.78,69.88249645]
[1767604075083,5.475844,134.81,134.78,69.88249645]
[1767604075279,0.72448722,134.82,134.78,69.88249645]
[1767604075475,5.47604916,134.81,134.79,0.66313086]
[1767604075682,0.72448722,134.82,134.79,62.46313086]
[1767604075876,5.47564004,134.81,134.79,62.46313086]
[1767604076076,0.72448722,134.82,134.79,62.46313086]
[1767604076296,5.47586023,134.81,134.79,62.46313086]
[1767604076491,0.72448722,134.82,134.79,62.46313086]
[1767604076681,5.47585913,134.81,134.79,69.88185108]
[1767604076883,0.69497154,134.83,134.79,69.88185108]
[1767604077188,5.47586411,134.82,134.79,69.88185108]
[1767604077390,5.47586411,134.81,134.79,69.88185108]
[1767604077576,0.69497154,134.83,134.79,69.88185108]
[1767604077778,5.47601176,134.82,134.79,69.88185108]
[1767604077978,5.47601176,134.81,134.79,69.88185108]
[1767604078281,0.69497154,134.83,134.79,69.88185108]
[1767604078479,5.4761694,134.82,134.79,69.88185108]
[1767604078678,5.4761694,134.81,134.79,69.88185108]
[1767604078881,0.69497154,134.83,134.79,69.88185108]
[1767604079198,6.17114094,134.82,134.79,69.88185108]
[1767604079377,5.4761694,134.81,134.79,69.88185108]
[1767604079577,0.69497154,134.82,134.79,69.88185108]
[1767604079798,5.47632577,134.81,134.79,69.88185108]
[1767604079969,0.69497154,134.82,134.79,69.88185108]
[1767604080170,5.47632166,134.81,134.79,69.88185108]
[1767604080373,0.69497154,134.82,134.79,69.88185108]
[1767604080608,5.47622028,134.81,134.79,69.88185108]
[1767604080798,0.69497154,134.82,134.79,69.88185108]
[1767604080981,5.47622028,134.81,134.79,69.88185108]
[1767604081187,0.69497154,134.82,134.79,62.46313086]
[1767604081391,6.15123001,134.81,134.79,61.8]
[1767604081583,0.67535189,134.81,134.77,69.89760354]
[1767604083102,0.67535189,134.79,134.76,8.09816233]
[1767604083405,0.64535187,134.79,134.75,21.53871658]
[1767604083611,0.61535185,134.79,134.75,8.09871658]
[1767604083899,3.97501848,134.79,134.75,0.67778222]
[1767604084092,8.83367041,134.78,134.74,8.09928512]
[1767604084295,3.29966659,134.78,134.74,8.09928512]
[1767604084675,3.26966659,134.78,134.74,8.09928512]
[1767604084876,3.35966663,134.79,134.74,8.09928512]
[1767604085077,5.47287995,134.78,134.74,8.09928512]
[1767604085278,3.35966663,134.79,134.74,8.09928512]
[1767604085576,0.67535189,134.77,134.74,8.09928512]
[1767604085799,0.64535189,134.77,134.74,8.09928512]
[1767604087899,0.67535189,134.79,134.75,0.67778222]
[1767604088081,5.46826799,134.78,134.75,0.67778222]
[1767604088279,0.67535189,134.79,134.75,0.67778222]
[1767604088501,5.46735671,134.78,134.75,0.67778222]
[1767604088800,0.67535189,134.79,134.75,8.09879942]
[1767604090085,0.67535189,134.79,134.75,11.45846605]
[1767604090280,22.58228844,134.93,134.78,3.35966663]
[1767604090281,0.67535189,134.87,134.78,3.35966663]
[1767604090484,0.67535189,134.84,134.8,3.35966663]
[1767604090793,0.67535189,134.82,134.78,4.03744885]
[1767604091812,0.67535189,134.8,134.77,61.8]
[1767604092116,0.67535189,134.8,134.75,24.89846605]
[1767604092681,0.67535189,134.8,134.76,4.03744885]
[1767604093802,0.67535189,134.8,134.76,11.45756987]
[1767604096299,0.67535189,134.8,134.76,73.25756987]
[1767604096706,0.67535189,134.78,134.73,84.39236517]
[1767604097004,0.67535189,134.78,134.74,11.45879406]
[1767604098488,0.67535189,134.78,134.75,0.67778222]
[1767604099522,0.67535189,134.78,134.75,11.4584636]
[1767604099818,0.67535189,134.79,134.75,8.09879697]
[1767604100187,0.67535189,134.79,134.75,11.4584636]
[1767604100687,0.67535189,134.79,134.76,0.67778222]
[1767604100887,0.67535189,134.79,134.76,62.47778222]
[1767604101313,0.67535189,134.79,134.76,69.89827782]
[1767604101488,0.67535189,134.79,134.76,61.8]
[1767604101688,0.67535189,134.79,134.74,11.45898707]
[1767604101991,0.67535189,134.79,134.73,83.33987088]
[1767604101992,4.03501852,134.77,134.73,83.33987088]
[1767604102208,4.03501852,134.75,134.71,62.47778222]
[1767604102411,4.03501852,134.75,134.69,21.92010924]
[1767604102412,0.67535189,134.73,134.7,8.10131437]
[1767604103892,0.64796142,134.73,134.69,8.1020972]
[1767604104711,7.42134883,134.75,134.71,0.67778222]
[1767604104712,3.35966663,134.75,134.71,0.67778222]
[1767604105393,3.35966663,134.74,134.7,8.10150798]
[1767604105818,4.03501852,134.74,134.7,8.10150798]
[1767604106814,0.67535189,134.74,134.7,8.10150798]
[1767604107119,4.03501852,134.74,134.7,8.10150798]
[1767604107315,0.67535189,134.76,134.71,0.67778222]
[1767604107520,0.67535189,134.76,134.73,3.35966663]
[1767604107698,0.67535189,134.77,134.73,4.03744885]
[1767604108102,13.46,134.81,134.7,87.78348819]
[1767604108103,0.67535189,134.79,134.75,4.03744885]
[1767604108619,0.67535189,134.79,134.75,2.82865473]
[1767604108820,0.67535189,134.79,134.75,0.67778222]
[1767604109606,0.67535189,134.79,134.75,8.09847517]
[1767604112227,0.67535189,134.79,134.75,10.24934768]
[1767604112408,0.67535189,134.79,134.75,8.09847517]
[1767604113220,0.66779901,134.78,134.75,8.09847517]
[1767604113431,0.66779901,134.78,134.74,22.34366724]
[1767604113605,0.66779901,134.77,134.73,8.14184845]
[1767604113837,0.66779901,134.77,134.73,69.94184845]
[1767604114135,0.66779901,134.77,134.74,8.14144583]
[1767604115556,0.66779901,134.78,134.74,8.14144583]
[1767604119362,0.66779901,134.8,134.76,0.7198065]
[1767604119864,0.66779901,134.81,134.77,0.7198065]
[1767604120047,0.66779901,134.81,134.78,0.7198065]
[1767604120434,2.81867152,134.82,134.78,0.7198065]
[1767604121254,0.66779901,134.81,134.77,0.7198065]
[1767604121768,0.66779901,134.81,134.78,7.41949844]
[1767604122070,0.66779901,134.83,134.79,0.7198065]
[1767604122461,0.66779901,134.85,134.79,0.7198065]
[1767604122651,0.66779901,134.83,134.78,43.04087339]
[1767604122849,2.81867152,134.84,134.79,0.7198065]
[1767604123758,2.81867152,134.84,134.8,8.13820412]
[1767604123959,0.66779901,134.82,134.79,7.41877177]
[1767604124162,2.81867152,134.83,134.79,8.13857827]
[1767604126490,0.66779901,134.81,134.78,8.13916484]
[1767604127146,0.66779901,134.78,134.75,0.7198065]
[1767604127346,2.75867151,134.78,134.74,94.51374396]
[1767604128852,2.75867151,134.78,134.75,7.42093544]
[1767604129367,0.607799,134.78,134.75,8.14074194]
[1767604129573,2.75867151,134.78,134.75,8.14074194]
[1767604129869,2.81867152,134.77,134.75,7.42093544]
[1767604130458,0.66779901,134.77,134.75,7.42093544]
[1767604130849,2.81867152,134.78,134.75,7.42093544]
[1767604132370,2.15087251,134.77,134.75,7.42093544]
[1767604132667,2.81867152,134.78,134.75,7.42093544]
[1767604134072,0.66779901,134.78,134.75,8.10062218]
[1767604134375,0.66779901,134.78,134.75,69.90062218]
[1767604134950,0.70704551,134.77,134.75,69.22093544]
[1767604135146,0.64704551,134.77,134.75,69.22093544]
[1767604137274,2.85791802,134.79,134.75,69.90062218]
[1767604137867,2.85791802,134.78,134.75,62.47968674]
[1767604138980,2.85791802,134.78,134.75,61.8]
[1767604140076,2.85791802,134.78,134.75,69.22112538]
[1767604140771,2.85791802,134.78,134.75,61.8]
[1767604141153,0.69049925,134.75,134.73,61.8]
[1767604141372,2.78137169,134.75,134.72,7.42240748]
[1767604141573,2.15087251,134.74,134.72,7.42240748]
[1767604142166,2.09087251,134.74,134.72,7.42240748]
[1767604145885,2.78137169,134.75,134.72,7.42240748]
[1767604147280,2.78137169,134.75,134.71,8.07783414]
[1767604147281,0.69049925,134.74,134.71,8.07783414]
[1767604147473,2.84137176,134.74,134.71,0.65468821]
[1767604148072,2.84137176,134.74,134.71,8.07793698]
[1767604148481,2.78137175,134.74,134.71,8.07793698]
[1767604149690,0.63049924,134.74,134.71,8.07793698]
[1767604149981,2.15087251,134.76,134.72,0.65468821]
[1767604150476,2.84137176,134.76,134.72,0.65468821]
[1767604151190,2.15087251,134.75,134.72,8.07739393]
[1767604151396,2.84137176,134.75,134.72,8.07739393]
[1767604151594,2.15087251,134.74,134.71,8.07783385]
[1767604151990,2.15087251,134.74,134.71,69.87783385]
[1767604152774,2.84137176,134.75,134.72,8.07733778]
[1767604153088,2.84137176,134.78,134.73,0.65468821]
[1767604153289,2.84137176,134.78,134.75,0.65468821]
[1767604153483,2.84137176,134.78,134.74,8.07638926]
[1767604153999,2.15087251,134.77,134.74,8.07638926]
[1767604154494,2.15087251,134.77,134.75,0.65468821]
[1767604155090,2.15087251,134.78,134.75,8.07571918]
[1767604155273,2.15087251,134.78,134.75,69.87571918]
[1767604155674,2.15087251,134.78,134.76,0.65468821]
[1767604155894,0.69049925,134.79,134.77,0.65468821]
[1767604155895,2.15087251,134.79,134.77,0.65468821]
[1767604157198,2.15087251,134.8,134.77,8.07465924]
[1767604158004,2.15087251,134.8,134.77,0.65468821]
[1767604158186,0.69049925,134.81,134.77,0.65468821]
[1767604158393,2.15087251,134.8,134.77,62.45468821]
[1767604159492,2.15087251,134.79,134.77,61.8]
[1767604160602,2.84137176,134.78,134.74,61.8]
[1767604160803,2.15087251,134.75,134.72,0.65468821]
[1767604160985,2.15087251,134.74,134.72,0.65468821]
[1767604162007,2.15087251,134.74,134.7,20.88373667]
[1767604162191,2.15087251,134.74,134.71,0.65468821]
[1767604163208,2.15087251,134.73,134.71,0.65468821]
[1767604164803,0.69049925,134.75,134.71,0.65468821]
[1767604165022,2.84137176,134.72,134.68,18.89142856]
[1767604165188,2.15087251,134.7,134.68,18.89142856]
[1767604167616,2.15087251,134.71,134.68,18.89142856]
[1767604168834,2.15087251,134.69,134.68,18.23674035]
[1767604169037,0.69049925,134.7,134.66,0.65468821]
[1767604169215,2.15087251,134.69,134.66,0.65468821]
[1767604169530,2.15087251,134.69,134.67,0.65468821]
[1767604169826,2.84137176,134.7,134.67,0.65468821]
[1767604170544,4.05651478,134.7,134.67,0.65468821]
[1767604170841,3.36601553,134.7,134.67,0.65468821]
[1767604172545,3.36601553,134.7,134.67,62.45468821]
[1767604172719,4.0626572,134.7,134.66,69.92783599]
[1767604173227,4.0626572,134.69,134.65,14.1619092]
[1767604174047,4.0626572,134.69,134.65,0.7019092]
[1767604174836,4.0626572,134.69,134.65,8.12855103]
[1767604175037,4.0626572,134.69,134.66,0.7019092]
[1767604179056,0.69664167,134.69,134.66,0.7019092]
[1767604182248,3.36601553,134.7,134.67,0.7019092]
[1767604182455,4.0626572,134.7,134.67,0.7019092]
[1767604183055,0.69664167,134.7,134.67,8.12731347]
[1767604183259,3.36601553,134.71,134.68,0.7019092]
[1767604183560,4.0626572,134.71,134.68,0.7019092]
[1767604183947,0.69664167,134.71,134.68,0.7019092]
[1767604184665,4.0626572,134.71,134.68,0.7019092]
[1767604184842,4.0626572,134.71,134.67,8.12731347]
[1767604185043,0.69664167,134.7,134.67,8.12731347]
[1767604186058,4.0626572,134.73,134.69,0.7019092]
[1767604186249,4.0626572,134.72,134.69,0.7019092]
[1767604186651,4.0626572,134.72,134.68,0.7019092]
[1767604187451,0.69664167,134.71,134.68,8.1269025]
[1767604188664,4.0626572,134.71,134.68,8.1269025]
[1767604188959,0.69664167,134.71,134.68,8.1269025]
[1767604189950,0.69664167,134.72,134.69,0.7019092]
[1767604191440,0.71418477,134.74,134.69,0.7019092]
[1767604191666,0.71418477,134.75,134.71,0.67487334]
[1767604191959,0.71418477,134.76,134.73,3.36601553]
[1767604192343,0.71418477,134.76,134.72,10.78832625]
[1767604193745,0.71418477,134.76,134.72,11.46319959]
[1767604195259,0.71418477,134.76,134.73,0.67487334]
[1767604196872,0.71418477,134.76,134.73,4.04088887]
[1767604197250,0.71418477,134.76,134.73,3.36601553]
[1767604198065,5.83154677,134.78,134.75,4.04088887]
[1767604198244,5.117362,134.78,134.77,3.36601553]
[1767604198650,5.117362,134.78,134.76,11.46113451]
[1767604199574,5.117362,134.78,134.76,4.04088887]
[1767604202277,5.117362,134.78,134.77,3.36601553]
[1767604203069,5.117362,134.78,134.76,4.03791523]
[1767604203246,5.117362,134.78,134.75,4.03791523]
[1767604203646,5.117362,134.78,134.75,0.6718997]
[1767604203870,5.117362,134.78,134.75,4.03791523]
[1767604204880,5.117362,134.78,134.76,3.36601553]
[1767604205879,5.117362,134.78,134.76,4.03791523]
[1767604206184,0.68730436,134.79,134.76,4.03791523]
[1767604206473,0.68730436,134.81,134.78,4.03791523]
[1767604206677,0.68730436,134.83,134.8,4.03791523]
[1767604206870,0.68730436,134.83,134.8,0.6718997]
[1767604207259,0.68730436,134.83,134.79,4.03791523]
[1767604208057,0.68730436,134.83,134.79,11.45676335]
[1767604209382,0.68730436,134.83,134.78,10.78537106]
[1767604209882,0.68730436,134.82,134.78,10.78537106]
[1767604210781,0.68730436,134.82,134.78,72.58537106]
[1767604211380,0.68730436,134.82,134.78,73.25727076]
[1767604211762,0.68730436,134.82,134.79,3.36601553]
[1767604212487,0.68730436,134.82,134.79,10.78484658]
[1767604212680,0.68730436,134.83,134.79,11.45674628]
[1767604213063,0.68730436,134.83,134.8,0.6718997]
[1767604215185,8.20354298,134.84,134.8,0.6718997]
[1767604215982,0.68730436,134.83,134.8,0.6718997]
[1767604218089,0.78730436,134.84,134.81,0.6718997]
[1767604218777,0.1,134.84,134.81,4.03791523]
[1767604219389,0.1,134.84,134.81,65.83791523]
[1767604219690,0.1,134.84,134.81,62.4718997]
[1767604222090,0.1,134.84,134.81,69.88961568]
[1767604222993,0.1,134.84,134.83,0.6718997]
[1767604223494,0.68730436,134.85,134.82,4.03791523]
[1767604224188,0.68730436,134.85,134.82,0.6718997]
[1767604224392,0.68730436,134.87,134.84,0.6718997]
[1767604224579,0.78730436,134.88,134.85,0.6718997]
[1767604224972,0.78730436,134.88,134.84,4.03791523]
[1767604225472,0.78730436,134.88,134.85,0.6718997]
[1767604227095,8.20139097,134.88,134.84,0.6718997]
[1767604227395,0.68730436,134.87,134.84,0.6718997]
[1767604227602,0.68730436,134.87,134.83,20.87665911]
[1767604227984,0.68730436,134.87,134.83,7.41665911]
[1767604228190,0.68730436,134.87,134.83,8.08855881]
[1767604228901,0.68730436,134.87,134.83,11.45457434]
[1767604229102,0.78730436,134.88,134.84,0.6718997]
[1767604229602,0.1,134.88,134.86,4.03791523]
[1767604229809,0.1,134.88,134.87,0.6718997]
[1767604230510,0.1,134.88,134.86,0.6718997]
[1767604230884,0.1,134.88,134.86,2.81957495]
[1767604231799,0.1,134.88,134.86,10.23440512]
[1767604232587,13.56,134.92,134.86,10.23440512]
[1767604232588,0.7125788,134.9,134.86,10.23440512]
[1767604232789,0.7125788,134.9,134.86,9.56250542]
[1767604232990,0.1,134.92,134.89,0.66047896]
[1767604233313,0.1,134.92,134.89,0.63047896]
[1767604233711,0.8125788,134.92,134.89,2.14767525]
[1767604234219,0.8125788,134.92,134.88,2.14767525]
[1767604234598,0.1,134.94,134.91,2.14767525]
[1767604234802,0.1,134.94,134.88,39.40870958]
[1767604234803,0.1,134.94,134.92,2.12029113]
[1767604238013,0.8125788,134.94,134.92,2.12029113]
[1767604238324,0.8125788,134.94,134.91,2.14767525]
[1767604239420,0.7125788,134.92,134.88,10.22199651]
[1767604239598,0.7125788,134.92,134.88,8.07432126]
[1767604239799,0.7125788,134.92,134.88,10.22199651]
[1767604240595,0.7125788,134.92,134.88,8.07432126]
[1767604240995,2.86025405,134.93,134.89,0.66047896]
[1767604241192,2.14767525,134.93,134.89,0.66047896]
[1767604241396,0.7125788,134.92,134.89,0.66047896]
[1767604242825,2.86025405,134.92,134.89,62.46047896]
[1767604243117,0.7125788,134.92,134.89,62.46047896]
[1767604243729,0.7125788,134.92,134.89,69.87391333]
[1767604244220,2.86025405,134.92,134.88,8.07432258]
[1767604247809,0.7125788,134.92,134.89,0.66047896]
[1767604248733,2.14767525,134.93,134.89,0.66047896]
[1767604248949,2.96025405,134.94,134.89,0.66047896]
[1767604249645,2.14767525,134.92,134.89,0.66047896]
[1767604251637,2.14767525,134.92,134.89,62.46047896]
[1767604253139,2.86025405,134.93,134.9,0.67967278]
[1767604253531,0.7125788,134.93,134.9,0.67967278]
[1767604254239,2.96957813,134.94,134.9,0.67967278]
[1767604254545,2.86957813,134.93,134.9,0.67967278]
[1767604255849,0.72190288,134.93,134.9,0.67967278]
[1767604256034,2.24767525,134.94,134.9,0.67967278]
[1767604256035,2.96957813,134.94,134.9,8.09238921]
[1767604256734,0.1,134.94,134.91,0.67967278]
[1767604256934,2.24767525,134.94,134.91,0.67967278]
[1767604257843,2.96957813,134.94,134.91,0.67967278]
[1767604260433,2.96957813,134.94,134.91,62.47967278]
[1767604260947,10.38031596,134.94,134.91,62.47967278]
[1767604261457,2.96957813,134.94,134.91,62.47967278]
[1767604269040,0.1,134.94,134.92,0.65405484]
[1767604269245,0.1,134.96,134.94,0.65405484]
[1767604270340,0.1,134.97,134.95,0.65405484]
[1767604270533,0.1,134.97,134.95,0.62405484]
[1767604271764,0.1,134.97,134.95,8.03418317]
[1767604272148,0.65625082,135.0,134.95,7.41012833]
[1767604272473,0.65625082,135.0,134.96,0.65405484]
[1767604272648,0.65625082,135.0,134.96,0.62405484]
[1767604272853,0.65625082,135.0,134.96,14.06405484]
[1767604273466,0.65625082,135.0,134.96,21.47365403]
[1767604273971,0.65625082,135.0,134.96,23.62132928]
[1767604274851,0.65625082,135.0,134.97,0.64091096]
[1767604275052,0.65625082,135.0,134.97,0.58091096]
[1767604275658,0.65625082,135.0,134.97,2.72858621]
[1767604275857,0.65625082,135.0,134.97,64.52858621]
[1767604276052,0.75625082,135.01,134.97,64.52858621]
[1767604277472,0.75625082,135.01,134.97,61.8]
[1767604277473,0.65625082,135.0,134.97,61.8]
[1767604277773,0.65625082,134.97,134.94,13.44]
[1767604277953,0.65625082,134.97,134.94,75.24]
[1767604278154,0.65625082,134.97,134.94,61.8]
[1767604278354,0.65625082,134.96,134.94,61.8]
[1767604280478,2.80392607,134.97,134.94,61.8]
[1767604280858,2.80392607,134.97,134.93,62.38091096]
[1767604285482,2.80392607,134.97,134.93,69.79213724]
[1767604285984,0.65625082,134.97,134.93,69.79213724]
[1767604286184,2.80392607,134.97,134.93,69.79213724]
[1767604286785,2.80392607,134.97,134.93,0.58091096]
[1767604286971,2.14767525,134.96,134.93,0.58091096]
[1767604287288,2.80392607,134.96,134.93,62.38091096]
[1767604289182,10.21365664,134.96,134.93,62.38091096]
[1767604289388,0.65625082,134.95,134.93,61.8]
[1767604289564,0.65625082,134.94,134.92,13.44]
[1767604289764,2.80392607,134.94,134.91,61.8]
[1767604290764,0.71024268,134.92,134.91,61.8]
[1767604291084,0.71024268,134.92,134.89,61.8]
[1767604291589,0.71024268,134.92,134.89,62.38091096]
[1767604291979,2.85791793,134.93,134.9,0.58091096]
[1767604292483,4.06489268,134.93,134.9,0.58091096]
[1767604292676,0.71024268,134.94,134.9,0.58091096]
[1767604292870,11.47519287,134.95,134.9,0.58091096]
[1767604293070,11.47519287,134.95,134.91,0.58091096]
[1767604295690,3.35465,134.94,134.91,0.58091096]
[1767604296891,11.47519287,134.95,134.91,0.58091096]
[1767604298396,0.71024268,134.94,134.9,75.82091096]
[1767604298575,0.71024268,134.94,134.91,61.8]
[1767604300093,0.71024268,134.93,134.91,61.8]
[1767604301177,8.12104877,134.94,134.91,61.8]
[1767604303704,8.12104877,134.94,134.91,62.38091096]
[1767604303882,8.12104877,134.94,134.91,61.8]
[1767604304304,8.12104877,134.94,134.9,75.84091096]
[1767604304806,8.12104877,134.94,134.9,62.38091096]
[1767604306009,7.41026864,134.95,134.91,0.58091096]
[1767604306204,8.12051132,134.95,134.91,0.58091096]
[1767604306909,11.47516132,134.95,134.91,0.58091096]
[1767604310222,0.71024268,134.94,134.91,62.38091096]
[1767604315317,0.71024268,134.94,134.91,69.79323511]
[1767604315511,0.71024268,134.95,134.91,73.14788511]
[1767604315718,0.71024268,134.96,134.92,3.93556096]
[1767604316100,0.71024268,134.96,134.93,0.58091096]
[1767604316511,0.71024268,134.97,134.93,3.93556096]
[1767604316715,0.71024268,134.97,134.94,0.58091096]
[1767604320145,0.71024268,134.97,134.93,73.14635933]
[1767604320812,0.71024268,134.97,134.94,0.58091096]
[1767604321130,4.06489268,134.97,134.93,69.79170933]
[1767604321323,0.71046162,134.96,134.93,69.79170933]
[1767604321522,4.06511162,134.96,134.92,62.38091096]
[1767604321831,4.06511162,134.96,134.9,7.41269717]
[1767604321832,4.06511162,134.94,134.9,83.25375156]
[1767604322030,4.06511162,134.94,134.9,21.45375156]
[1767604322233,4.06511162,134.94,134.91,0.58091096]
[1767604322436,0.71046162,134.94,134.91,0.58091096]
[1767604322610,0.71046162,134.94,134.9,21.45375156]
[1767604323012,0.71046162,134.94,134.9,24.80840156]
[1767604323629,0.71046162,134.94,134.91,0.58091096]
[1767604325731,3.35465,134.95,134.91,0.58091096]
[1767604325912,4.06511162,134.95,134.91,7.99319357]
[1767604326737,4.06511162,134.95,134.92,0.58091096]
[1767604327815,4.06511162,134.95,134.92,62.38091096]
[1767604328515,4.06511162,134.94,134.92,61.8]
[1767604328720,0.71046162,134.93,134.89,0.58091096]
[1767604328921,3.35465,134.92,134.89,0.58091096]
[1767604329524,4.06511162,134.93,134.89,0.58091096]
[1767604329839,0.71046162,134.93,134.9,0.58091096]
[1767604330541,0.71046162,134.93,134.89,10.76804826]
[1767604331042,0.71046162,134.93,134.89,7.41339826]
[1767604331341,0.71046162,134.92,134.89,7.41339826]
[1767604332334,0.71046162,134.92,134.88,45.0800996]
[1767604333150,0.71046162,134.92,134.89,0.58091096]
[1767604333733,0.71046162,134.92,134.89,20.85158294]
[1767604333949,4.06511162,134.92,134.89,20.85158294]
[1767604334253,0.71046162,134.92,134.89,0.58091096]
[1767604340539,0.71046162,134.92,134.88,41.14453864]
[1767604340740,0.71046162,134.92,134.88,41.7254496]
[1767604341859,0.71046162,134.91,134.88,41.7254496]
[1767604347272,0.71046162,134.91,134.89,3.35465]
[1767604347773,0.71046162,134.91,134.88,41.7254496]
[1767604347974,0.71046162,134.91,134.89,3.35465]
[1767604349651,0.71046162,134.91,134.88,33.73067198]
[1767604349863,0.71046162,134.91,134.88,24.20623294]
[1767604350660,0.71046162,134.91,134.89,3.35465]
[1767604352555,0.71046162,134.91,134.89,2.14698127]
[1767604355677,0.21046162,134.91,134.89,2.14698127]
[1767604359491,0.21046162,134.91,134.88,2.85928053]
[1767604360187,0.71261604,134.9,134.88,2.14698127]
[1767604360486,0.71261604,134.9,134.87,22.41765325]
[1767604360686,0.71261604,134.9,134.87,20.27067198]
[1767604362994,0.71261604,134.9,134.86,30.54487103]
[1767604364269,0.71261604,134.89,134.85,0.71229926]
[1767604364480,0.71261604,134.86,134.83,15.28544079]
[1767604364677,0.65261605,134.86,134.83,15.28544079]
[1767604364880,25.94523195,134.9,134.84,2.85928053]
[1767604365078,5.4756489,134.89,134.84,2.85928053]
[1767604365306,28.09221322,134.9,134.84,2.85928053]
[1767604365495,4.97286823,134.89,134.84,2.85928053]
[1767604365792,28.09221322,134.9,134.84,2.85928053]
[1767604366676,0.71261604,134.87,134.84,0.71229926]
[1767604366876,0.71261604,134.87,134.84,2.85928053]
[1767604367083,0.71261604,134.88,134.84,2.85928053]
[1767604367670,0.71261604,134.9,134.87,2.14698127]
[1767604368071,0.71261604,134.9,134.88,2.14698127]
[1767604368270,0.71261604,134.91,134.88,2.14698127]
[1767604368896,0.71261604,134.91,134.87,2.85928053]
[1767604369101,0.71261604,134.9,134.87,2.85928053]
[1767604369612,0.71261604,134.9,134.87,0.71229926]
[1767604369902,0.71261604,134.9,134.86,16.31928053]
[1767604370277,0.71261604,134.9,134.86,2.85928053]
[1767604370774,8.12573561,134.9,134.86,2.85928053]
[1767604371607,0.67074699,134.88,134.84,34.3844193]
[1767604371775,0.67074699,134.88,134.85,2.80072859]
[1767604373607,8.08485091,134.88,134.85,0.65374732]
[1767604373782,0.67074699,134.87,134.83,15.93918811]
[1767604375501,0.67074699,134.86,134.83,15.93918811]
[1767604381807,2.81772826,134.86,134.83,15.93918811]
[1767604382047,7.41456754,134.87,134.84,0.72130882]
[1767604382192,9.98866402,134.87,134.83,15.28174961]
[1767604382391,7.84168275,134.87,134.83,15.28174961]